fUST/lending_fUST_20251022
["ID","MTS","AMOUNT","RATE_DAILY","PERIOD"]
[392055402,1761125439929,-320.877813,0.00033804,30]
[392055403,1761125439938,-320.877813,0.00033804,30]
[392055404,1761125439947,-320.877813,0.00033804,30]
[392055405,1761125439956,-320.877813,0.00033804,30]
[392055406,1761125439968,-320.877813,0.00033804,30]
[392055407,1761125439978,-320.877822,0.00033804,30]
[392055408,1761125439989,-151.0,0.00033804,30]
[392055409,1761125439999,-151.0,0.00033804,30]
[392055410,1761125440009,-151.0,0.00033804,30]
[392055411,1761125440019,-151.0,0.00033804,30]
[392055412,1761125440029,-151.0,0.00033804,30]
[392055413,1761125440038,-162.925086,0.00033804,30]
[392055414,1761125440047,-151.0,0.00033804,30]
[392055415,1761125440056,-151.0,0.00033804,30]
[392055416,1761125440066,-153.508251,0.00033804,30]
[392055417,1761125440075,-151.0,0.00033804,30]
[392055418,1761125440084,-151.0,0.00033804,30]
[392055419,1761125440093,-151.0,0.00033804,30]
[392055420,1761125440103,-151.0,0.00033804,30]
[392055421,1761125440112,-151.0,0.00033804,30]
[392055422,1761125440121,-151.0,0.00033804,30]
[392055423,1761125440130,-151.0,0.00033804,30]
[392055424,1761125440139,-151.0,0.00033804,30]
[392055425,1761125440148,-151.0,0.00033804,30]
[392055426,1761125440157,-170.786952,0.00033804,30]
[392055427,1761125440167,-151.0,0.00033804,30]
[392055428,1761125440176,-151.0,0.00033804,30]
[392055429,1761125440185,-2999.0,0.00033804,120]
[392055430,1761125440194,-2424.244599,0.00033804,30]
[392055431,1761125440204,-2424.244599,0.00033804,30]
[392055432,1761125440214,-2424.244599,0.00033804,30]
[392055433,1761125440224,-2424.244599,0.00033804,30]
[392055434,1761125440233,-2424.244599,0.00033804,30]
[392055435,1761125440243,-2424.244599,0.00033804,30]
[392055436,1761125440252,-151.0,0.00033804,30]
[392055437,1761125440261,-151.0,0.00033804,30]
[392055438,1761125440270,-151.0,0.00033804,30]
[392055439,1761125440280,-2424.244599,0.00033804,30]
[392055440,1761125440290,-151.0,0.00033804,30]
[392055441,1761125440299,-2424.244599,0.00033804,30]
[392055442,1761125440308,-151.0,0.00033804,30]
[392055443,1761125440318,-2424.244599,0.00033804,30]
[392055444,1761125440329,-151.0,0.00033804,30]
[392055445,1761125440338,-2424.244599,0.00033804,30]
[392055446,1761125440348,-151.0,0.00033804,30]
[392055447,1761125440357,-2424.244599,0.00033804,30]
[392055448,1761125440366,-151.0,0.00033804,30]
[392055449,1761125440375,-2424.24460759,0.00033804,30]
[392055450,1761125440384,-151.0,0.00033804,30]
[392055451,1761125440398,-151.0,0.00033804,30]
[392055452,1761125440407,-151.0,0.00033804,30]
[392055453,1761125440418,-151.0,0.00033804,30]
[392055454,1761125440428,-287.085778,0.00033804,30]
[392055455,1761125440439,-200.0,0.00033804,7]
[392055456,1761125440449,-151.0,0.00033804,30]
[392055457,1761125440457,-151.0,0.00033804,30]
[392055458,1761125440469,-151.0,0.00033804,30]
[392055459,1761125440479,-151.0,0.00033804,30]
[392055460,1761125440493,-151.0,0.00033804,30]
[392055461,1761125440502,-151.0,0.00033804,30]
[392055462,1761125440512,-187135.857953,0.00033804,2]
[392055463,1761125440523,-8813.77416304,0.00033804,2]
[392055464,1761125440534,-151.0,0.00033814,30]
[392055465,1761125440544,-229.636141,0.00033814,30]
[392055466,1761125440555,-152.579442,0.00033814,30]
[392055467,1761125440565,-151.0,0.00033814,30]
[392055468,1761125440574,-151.0,0.00033814,30]
[392055469,1761125440584,-151.0,0.00033814,30]
[392055470,1761125440593,-151.0,0.00033814,30]
[392055471,1761125440602,-151.0,0.00033814,30]
[392055472,1761125440612,-151.0,0.00033814,30]
[392055473,1761125440621,-509.31246,0.00033814,30]
[392055474,1761125440630,-509.31246,0.00033814,30]
[392055475,1761125440640,-509.31246,0.00033814,30]
[392055476,1761125440649,-509.31246,0.00033814,30]
[392055477,1761125440657,-509.31246,0.00033814,30]
[392055478,1761125440675,-509.31246,0.00033814,30]
[392055479,1761125440685,-509.31246,0.00033814,30]
[392055480,1761125440694,-509.31246,0.00033814,30]
[392055481,1761125440703,-509.31246,0.00033814,30]
[392055482,1761125440713,-509.31246,0.00033814,30]
[392055483,1761125440722,-509.31246,0.00033814,30]
[392055484,1761125440731,-509.31246,0.00033814,30]
[392055485,1761125440742,-151.0,0.00033814,30]
[392055486,1761125440752,-151.0,0.00033814,30]
[392055487,1761125440761,-151.0,0.00033814,30]
[392055488,1761125440771,-151.0,0.00033814,30]
[392055489,1761125440780,-151.0,0.00033814,30]
[392055490,1761125440789,-151.0,0.00033814,30]
[392055491,1761125440798,-151.0,0.00033814,30]
[392055492,1761125440807,-151.0,0.00033814,30]
[392055493,1761125440816,-157.279047,0.00033814,30]
[392055494,1761125440945,-151.0,0.00033814,30]
[392055495,1761125440955,-151.0,0.00033814,30]
[392055496,1761125440964,-151.0,0.00033814,30]
[392055497,1761125440973,-211.709409,0.00033814,30]
[392055498,1761125440984,-151.0,0.00033814,30]
[392055499,1761125440993,-151.0,0.00033814,30]
[392055500,1761125441002,-151.0,0.00033814,30]
[392055501,1761125441011,-151.0,0.00033814,30]
[392055502,1761125441021,-151.0,0.00033814,30]
[392055503,1761125441031,-151.0,0.00033814,30]
[392055504,1761125441040,-151.0,0.00033814,30]
[392055505,1761125441049,-151.0,0.00033814,30]
[392055506,1761125441058,-151.0,0.00033814,30]
[392055507,1761125441067,-151.0,0.00033814,7]
[392055508,1761125441077,-151.0,0.00033814,7]
[392055509,1761125441087,-151.0,0.00033814,7]
[392055510,1761125441096,-151.0,0.00033814,7]
[392055511,1761125441106,-151.0,0.00033814,7]
[392055512,1761125441115,-187.209,0.00033814,7]
[392055513,1761125441124,-154.823659,0.00033814,30]
[392055514,1761125441134,-151.0,0.00033814,30]
[392055515,1761125441143,-151.0,0.00033814,30]
[392055516,1761125441152,-151.0,0.00033814,30]
[392055517,1761125441161,-151.0,0.00033814,30]
[392055518,1761125441170,-151.0,0.00033814,30]
[392055519,1761125441180,-151.0,0.00033814,30]
[392055520,1761125441189,-151.0,0.00033814,30]
[392055521,1761125441198,-160.404631,0.00033814,30]
[392055522,1761125441207,-151.0,0.00033814,30]
[392055523,1761125441218,-151.0,0.00033814,30]
[392055524,1761125441227,-151.0,0.00033814,30]
[392055525,1761125441239,-151.0,0.00033814,30]
[392055526,1761125441247,-151.0,0.00033814,30]
[392055527,1761125441256,-151.0,0.00033814,30]
[392055528,1761125441265,-151.0,0.00033814,30]
[392055529,1761125441275,-282.663805,0.00033814,30]
[392055530,1761125441284,-151.0,0.00033814,30]
[392055531,1761125441293,-151.0,0.00033814,30]
[392055532,1761125441303,-151.0,0.00033814,30]
[392055533,1761125441313,-230.978654,0.00033814,30]
[392055534,1761125441323,-180.949707,0.00033814,30]
[392055535,1761125441333,-180.949707,0.00033814,30]
[392055536,1761125441342,-180.949707,0.00033814,30]
[392055537,1761125441351,-180.949707,0.00033814,30]
[392055538,1761125441360,-180.949707,0.00033814,30]
[392055539,1761125441370,-180.949707,0.00033814,30]
[392055540,1761125441379,-180.949707,0.00033814,30]
[392055541,1761125441390,-180.949707,0.00033814,30]
[392055542,1761125441403,-180.949707,0.00033814,30]
[392055543,1761125441412,-180.949707,0.00033814,30]
[392055544,1761125441421,-180.949707,0.00033814,30]
[392055545,1761125441431,-151.0,0.00033814,30]
[392055546,1761125441441,-180.949707,0.00033814,30]
[392055547,1761125441450,-151.0,0.00033814,30]
[392055548,1761125441460,-180.949707,0.00033814,30]
[392055549,1761125441470,-180.949707,0.00033814,30]
[392055550,1761125441481,-180.949707,0.00033814,30]
[392055551,1761125441491,-180.949703,0.00033814,30]
[392055552,1761125441500,-151.0,0.00033814,30]
[392055553,1761125441510,-151.0,0.00033814,30]
[392055554,1761125441519,-151.0,0.00033814,30]
[392055555,1761125441528,-151.0,0.00033814,30]
[392055556,1761125441538,-151.0,0.00033814,30]
[392055557,1761125441547,-151.0,0.00033814,30]
[392055558,1761125441557,-151.0,0.00033814,30]
[392055559,1761125441566,-151.0,0.00033814,30]
[392055560,1761125441576,-151.0,0.00033814,30]
[392055561,1761125441586,-151.0,0.00033814,30]
[392055562,1761125441595,-151.0,0.00033814,30]
[392055563,1761125441604,-151.0,0.00033814,30]
[392055564,1761125441614,-151.0,0.00033814,30]
[392055565,1761125441623,-277.001028,0.00033814,30]
[392055566,1761125441633,-151.0,0.00033814,30]
[392055567,1761125441642,-151.0,0.00033814,30]
[392055568,1761125441651,-151.0,0.00033814,30]
[392055569,1761125441661,-151.0,0.00033814,30]
[392055570,1761125441670,-151.0,0.00033814,30]
[392055571,1761125441679,-151.0,0.00033814,30]
[392055572,1761125441688,-219.818052,0.00033814,30]
[392055573,1761125441698,-151.0,0.00033814,30]
[392055574,1761125441707,-151.0,0.00033814,30]
[392055575,1761125441716,-151.0,0.00033814,30]
[392055576,1761125441726,-151.0,0.00033814,30]
[392055577,1761125441736,-151.0,0.00033814,30]
[392055578,1761125441745,-151.0,0.00033814,30]
[392055579,1761125441754,-151.0,0.00033814,30]
[392055580,1761125441763,-151.0,0.00033814,30]
[392055581,1761125441773,-151.0,0.00033814,30]
[392055582,1761125441783,-151.0,0.00033814,30]
[392055583,1761125441792,-330.215666,0.00033814,28]
[392055584,1761125441801,-151.0,0.00033814,30]
[392055585,1761125441810,-151.0,0.00033814,30]
[392055586,1761125441819,-151.0,0.00033814,30]
[392055587,1761125441828,-151.0,0.00033814,30]
[392055588,1761125441837,-155.515626,0.00033814,30]
[392055589,1761125441846,-151.0,0.00033814,30]
[392055590,1761125441855,-151.0,0.00033814,30]
[392055591,1761125441864,-151.0,0.00033814,30]
[392055592,1761125441873,-186.806424,0.00033814,30]
[392055593,1761125441882,-370000.0,0.00033814,2]
[392055594,1761125441891,-1500.0,0.00033835,28]
[392055595,1761125441900,-152.62,0.00033856,60]
[392055596,1761125441909,-23391.9822441,0.00033894,2]
[392055597,1761125441918,-1101.72177038,0.00033894,2]
[392055598,1761125441927,-990.0,0.000339,2]
[392055599,1761125441936,-990.0,0.000339,3]
[392055600,1761125441945,-3009.95856173,0.000339,6]
[392055601,1761125441953,-151.0,0.000339,30]
[392055602,1761125441962,-151.0,0.000339,30]
[392055603,1761125441971,-151.0,0.000339,30]
[392055604,1761125441979,-509.31246,0.000339,30]
[392055605,1761125441989,-509.31246,0.000339,30]
[392055606,1761125441998,-509.31246,0.000339,30]
[392055607,1761125442006,-509.31246,0.000339,30]
[392055608,1761125442015,-509.31246,0.000339,30]
[392055609,1761125442023,-509.31246,0.000339,30]
[392055610,1761125442032,-509.31246,0.000339,30]
[392055611,1761125442040,-509.31247,0.000339,30]
[392055612,1761125442049,-151.0,0.000339,30]
[392055613,1761125442057,-151.0,0.000339,30]
[392055614,1761125442066,-151.0,0.000339,30]
[392055615,1761125442075,-151.0,0.000339,30]
[392055616,1761125442084,-151.0,0.000339,30]
[392055617,1761125442092,-151.0,0.000339,30]
[392055618,1761125442101,-151.0,0.000339,30]
[392055619,1761125442111,-151.0,0.000339,30]
[392055620,1761125442119,-151.0,0.000339,30]
[392055621,1761125442128,-151.0,0.000339,30]
[392055622,1761125442137,-151.0,0.000339,30]
[392055624,1761125442146,-207.336995,0.000339,30]
[392055625,1761125442155,-926.7,0.000339,14]
[392055626,1761125442164,-1101.72177038,0.00033904,2]
[392055627,1761125442173,-151.0,0.00033904,30]
[392055628,1761125442181,-219.459903,0.00033904,30]
[392055629,1761125442190,-151.0,0.00033904,30]
[392055630,1761125442199,-151.0,0.00033904,30]
[392055632,1761125442208,-152.192383,0.00033904,30]
[392055634,1761125442217,-151.0,0.00033904,30]
[392055635,1761125442225,-151.0,0.00033904,30]
[392055636,1761125442234,-151.0,0.00033904,30]
[392055637,1761125442242,-151.0,0.00033904,30]
[392055638,1761125442251,-151.0,0.00033904,30]
[392055639,1761125442260,-151.0,0.00033904,30]
[392055640,1761125442268,-151.0,0.00033904,30]
[392055641,1761125442277,-151.0,0.00033904,30]
[392055642,1761125442285,-151.0,0.00033904,30]
[392055643,1761125442293,-212.610844,0.00033904,30]
[392055644,1761125442302,-151.0,0.00033904,30]
[392055645,1761125442311,-151.0,0.00033904,30]
[392055646,1761125442319,-151.727477,0.00033904,30]
[392055647,1761125442328,-151.0,0.00033904,30]
[392055648,1761125442337,-163.287973,0.00033904,30]
[392055649,1761125442345,-151.0,0.00033904,30]
[392055650,1761125442354,-151.0,0.00033904,30]
[392055651,1761125442363,-152.215669,0.00033904,30]
[392055652,1761125442371,-151.0,0.00033904,30]
[392055653,1761125442380,-151.0,0.00033904,30]
[392055654,1761125442392,-151.0,0.00033904,30]
[392055655,1761125442406,-151.0,0.00033904,30]
[392055656,1761125442416,-151.0,0.00033904,30]
[392055657,1761125442425,-151.0,0.00033904,30]
[392055658,1761125442436,-207.760814,0.00033904,30]
[392055660,1761125442446,-8333.33,0.00033904,7]
[392055662,1761125442455,-151.0,0.00033904,30]
[392055664,1761125442465,-151.0,0.00033904,30]
[392055666,1761125442474,-151.0,0.00033904,30]
[392055668,1761125442483,-257.540797,0.00033904,30]
[392055669,1761125442492,-151.0,0.00033904,30]
[392055670,1761125442503,-2203.44354076,0.00033913,2]
[392055672,1761125442512,-151.0,0.00033914,30]
[392055674,1761125442522,-151.0,0.00033914,30]
[392055676,1761125442532,-8333.33,0.00033914,7]
[392055678,1761125442541,-8333.33,0.00033914,7]
[392055680,1761125442550,-8333.33,0.00033914,7]
[392055682,1761125442560,-8333.33,0.00033914,7]
[392055684,1761125442569,-8333.33,0.00033914,7]
[392055686,1761125442578,-8333.33,0.00033914,7]
[392055688,1761125442587,-1101.72177038,0.00033914,2]
[392055690,1761125442597,-2964.86,0.00033922,14]
[392055692,1761125442606,-8333.33,0.00033923,7]
[392055694,1761125442615,-8333.33,0.00033923,7]
[392055696,1761125442624,-8333.33,0.00033923,7]
[392055698,1761125442633,-8333.33,0.00033923,7]
[392055699,1761125442642,-8333.33,0.00033923,7]
[392055702,1761125442652,-8333.33,0.00033923,7]
[392055703,1761125442661,-8333.33,0.00033923,7]
[392055705,1761125442671,-8333.33,0.00033923,7]
[392055708,1761125442681,-8333.33,0.00033923,7]
[392055710,1761125442690,-8333.33,0.00033923,7]
[392055712,1761125442699,-8333.33,0.00033923,7]
[392055713,1761125442709,-8333.33,0.00033923,7]
[392055716,1761125442718,-8333.33,0.00033924,7]
[392055718,1761125442728,-8333.33,0.00033924,7]
[392055720,1761125442737,-8333.33,0.00033924,7]
[392055722,1761125442747,-8333.33,0.00033924,7]
[392055723,1761125442756,-8333.41,0.00033924,7]
[392055726,1761125442765,-500.0,0.00033925,30]
[392055727,1761125442775,-152.62,0.00033956,60]
[392055729,1761125442784,-205.59835951,0.00033973,5]
[392055731,1761125442793,-503.93110418,0.00033973,5]
[392055733,1761125442803,-508.67918338,0.00033973,5]
[392055735,1761125442812,-5059.0924761,0.0003398,2]
[392055737,1761125442821,-625.33567772,0.0003399,60]
[392055739,1761125442830,-354272.77520808,0.00033998,2]
[392055741,1761125442839,-646.6078152,0.00034,7]
[392055743,1761125442849,-8112.52134326,0.00034,30]
[392055745,1761125442858,-200.4797,0.00034,120]
[392055747,1761125442867,-152.62,0.00034056,60]
[392055749,1761125442876,-276.45155934,0.00034096,2]
[392055751,1761125442885,-152.62,0.00034156,60]
[392055753,1761125442898,-1101.72177038,0.0003419,2]
[392055755,1761125442907,-189.65,0.000342,7]
[392055757,1761125442915,-5710.26,0.000342,14]
[392055759,1761125442925,-8000.0,0.00034246,2]
[392055762,1761125442934,-152.62,0.00034256,60]
[392055764,1761125442943,-500.0,0.0003432,10]
[392055766,1761125442952,-152.62,0.00034356,60]
[392055768,1761125442961,-152.62,0.00034456,60]
[392055770,1761125442969,-2999.0,0.00034489,120]
[392055772,1761125442979,-8000.0,0.00034505,2]
[392055774,1761125442993,-186.735614,0.00034515,10]
[392055776,1761125443002,-152.62,0.00034556,60]
[392055778,1761125443011,-1101.72177038,0.00034579,2]
[392055780,1761125443020,-8000.0,0.00034589,2]
[392055782,1761125443030,-8000.0,0.00034589,2]
[392055784,1761125443039,-8000.0,0.00034589,2]
[392055786,1761125443048,-4000.0,0.00034599,2]
[392055788,1761125443057,-152.62,0.00034656,60]
[392055790,1761125443066,-152.62,0.00034756,60]
[392055792,1761125443075,-152.62,0.00034856,60]
[392055794,1761125443085,-277.0,0.000349,9]
[392055795,1761125443095,-152.62,0.00034956,60]
[392055797,1761125443104,-601.06903676,0.00035,120]
[392055799,1761125443114,-521.48,0.00035,30]
[392055801,1761125443123,-600.0,0.00035044,30]
[392055803,1761125443132,-403.14601822,0.00035044,30]
[392055805,1761125443141,-160.0,0.00035044,30]
[392055807,1761125443150,-152.62,0.00035056,60]
[392055809,1761125443159,-1000.0,0.0003509,30]
[392055811,1761125443168,-152.62,0.00035156,60]
[392055813,1761125443177,-613.52,0.00035164,3]
[392055815,1761125443186,-306.76,0.00035164,3]
[392055817,1761125443196,-2999.0,0.00035173,120]
[392055819,1761125443205,-152.62,0.00035256,60]
[392055821,1761125443216,-803.0,0.0003532,30]
[392055823,1761125443225,-151.0,0.00035322,30]
[392055834,1761125443325,-204.76,0.00035322,30]
[392055836,1761125443334,-351.46,0.00035322,30]
[392055838,1761125443344,-500.0,0.00035326,13]
[392055840,1761125443354,-500.0,0.00035326,13]
[392055842,1761125443362,-52895.15897547,0.00035327,20]
[392055848,1761125443414,-3580.83990462,0.00035327,20]
[392056306,1761125556603,160.57707321,0.00035321,30]
[392056310,1761126215175,516.3,0.000239,2]
[392056320,1761126307253,333.0,0.000239,2]
[392056321,1761126468337,170.29448452,0.00030136,120]
[392056362,1761126631947,-1625.396207,0.00024703,2]
[392056473,1761126637720,-12036.35878858,0.00024603,2]
[392056475,1761126637731,-732.07836864,0.00024703,2]
[392056478,1761126637741,-150.0,0.00025079,2]
[392056480,1761126637750,-500.0,0.000253,2]
[392056482,1761126637760,-1200.0,0.00027898,2]
[392056483,1761126637769,-1200.0,0.00027899,2]
[392056485,1761126637780,-300.0,0.00027899,2]
[392056487,1761126637790,-300.0,0.00027899,2]
[392056490,1761126637801,-300.0,0.00027899,2]
[392056492,1761126637810,-500.0,0.000279,5]
[392056493,1761126637820,-500.0,0.000279,5]
[392056495,1761126637830,-500.0,0.000279,5]
[392056497,1761126637839,-9209.02495685,0.00027901,2]
[392056499,1761126637848,-1000.0,0.00028448,5]
[392056501,1761126637858,-500.0,0.00028996,5]
[392056503,1761126637867,-528.77638099,0.00028999,7]
[392056505,1761126637877,-8333.33,0.00028999,7]
[392056507,1761126637885,-420.0,0.00030134,2]
[392056509,1761126637895,-666.0,0.00032013,2]
[392056511,1761126637905,-629.61424885,0.00032178,2]
[392056513,1761126637914,-587.0,0.00032548,2]
[392056515,1761126637924,-152.62,0.00032581,15]
[392056517,1761126637934,-152.62,0.00032586,15]
[392056519,1761126637943,-152.62,0.00032588,15]
[392056521,1761126637953,-152.62,0.00032688,15]
[392056523,1761126637962,-152.62,0.00032788,15]
[392056525,1761126637972,-1059.37130943,0.00032795,2]
[392056527,1761126637981,-152.62,0.00032888,60]
[392056529,1761126637990,-152.62,0.00032988,60]
[392056531,1761126637999,-509.11777605,0.00033064,7]
[392056533,1761126638009,-152.62,0.00033088,60]
[392056536,1761126638019,-152.62,0.00033188,60]
[392056538,1761126638029,-7212.08892943,0.00033251,2]
[392056540,1761126638040,-152.62,0.00033288,60]
[392056542,1761126638049,-152.62,0.00033388,60]
[392056543,1761126638059,-500.0,0.0003344,7]
[392056545,1761126638069,-500.0,0.0003344,7]
[392056547,1761126638080,-208.7821705,0.00033441,2]
[392056549,1761126638090,-152.62,0.00033488,60]
[392056551,1761126638100,-152.62,0.00033588,60]
[392056554,1761126638110,-561.68,0.00033684,10]
[392056555,1761126638119,-1055.4,0.00033684,10]
[392056558,1761126638130,-1055.4,0.00033684,10]
[392056560,1761126638143,-609.99,0.00033684,10]
[392056562,1761126638153,-152.62,0.00033688,60]
[392056564,1761126638163,-168.07636764,0.00033693,7]
[392056566,1761126638173,-500.0,0.00033693,2]
[392056568,1761126638182,-500.0,0.00033693,2]
[392056570,1761126638192,-500.0,0.00033693,2]
[392056572,1761126638201,-367.77700633,0.00033693,2]
[392056574,1761126638211,-500.0,0.00033693,2]
[392056576,1761126638221,-500.0,0.00033693,2]
[392056578,1761126638230,-500.0,0.00033693,2]
[392056580,1761126638240,-477.65587335,0.00033693,2]
[392056582,1761126638250,-1000.0,0.00033693,2]
[392056584,1761126638259,-1000.0,0.00033693,2]
[392056586,1761126638269,-1000.0,0.00033693,2]
[392056587,1761126638284,-1000.0,0.00033693,2]
[392056588,1761126638294,-1000.0,0.00033693,2]
[392056589,1761126638303,-153.38,0.00033694,3]
[392056590,1761126638313,-766.9,0.00033694,3]
[392056591,1761126638323,-102924.721874,0.00033694,2]
[392056592,1761126638332,-5223.57709248,0.00033694,2]
[392056593,1761126638342,-250.0,0.00033703,2]
[392056594,1761126638351,-250.0,0.00033703,2]
[392056595,1761126638361,-250.0,0.00033703,2]
[392056596,1761126638370,-250.0,0.00033703,2]
[392056597,1761126638380,-250.0,0.00033703,2]
[392056598,1761126638390,-250.0,0.00033703,2]
[392056599,1761126638399,-250.0,0.00033703,2]
[392056600,1761126638411,-250.0,0.00033703,2]
[392056601,1761126638420,-250.0,0.00033703,2]
[392056602,1761126638430,-250.0,0.00033703,2]
[392056603,1761126638440,-250.0,0.00033703,2]
[392056604,1761126638450,-250.0,0.00033703,2]
[392056605,1761126638459,-250.0,0.00033703,2]
[392056606,1761126638469,-250.0,0.00033703,2]
[392056607,1761126638478,-250.0,0.00033703,2]
[392056608,1761126638487,-250.0,0.00033703,2]
[392056609,1761126638497,-250.0,0.00033703,2]
[392056610,1761126638507,-250.0,0.00033703,2]
[392056611,1761126638516,-250.0,0.00033703,2]
[392056612,1761126638525,-250.0,0.00033703,2]
[392056613,1761126638534,-339.20102542,0.00033703,2]
[392056614,1761126638544,-2999.0,0.00033703,120]
[392056615,1761126638554,-1000.0,0.00033703,2]
[392056616,1761126638563,-1000.0,0.00033703,2]
[392056617,1761126638572,-1000.0,0.00033703,2]
[392056618,1761126638582,-1000.0,0.00033703,2]
[392056619,1761126638591,-1000.0,0.00033703,2]
[392056620,1761126638601,-699.33056489,0.00033703,2]
[392056621,1761126638610,-370000.0,0.00033704,2]
[392056622,1761126638620,-500.0,0.00033704,30]
[392056623,1761126638630,-205.59835951,0.00033773,5]
[392056624,1761126638639,-500.0,0.00033773,5]
[392056625,1761126638648,-500.0,0.00033773,5]
[392056626,1761126638658,-508.67918338,0.00033773,5]
[392056627,1761126638667,-503.93110418,0.00033773,5]
[392056628,1761126638677,-152.62,0.00033788,60]
[392056629,1761126638686,-25731.1804685,0.00033794,2]
[392056630,1761126638695,-1305.89427312,0.00033794,2]
[392056631,1761126638705,-25731.1804685,0.00033803,2]
[392056632,1761126638714,-1305.89427312,0.00033803,2]
[392056633,1761126638724,-8333.33,0.00033803,7]
[392056634,1761126638734,-8333.33,0.00033803,7]
[392056635,1761126638743,-8333.33,0.00033803,7]
[392056636,1761126638753,-151.0,0.00033803,30]
[392056637,1761126638763,-151.0,0.00033803,30]
[392056638,1761126638774,-151.0,0.00033803,30]
[392056639,1761126638870,-502.1614878,0.00033804,2]
[392056640,1761126638902,-8333.33,0.00033804,7]
[392056641,1761126638913,-8333.33,0.00033804,7]
[392056642,1761126638923,-8333.33,0.00033804,7]
[392056643,1761126638933,-8333.33,0.00033804,7]
[392056644,1761126638943,-8333.33,0.00033804,7]
[392056645,1761126638953,-8333.33,0.00033804,7]
[392056646,1761126638962,-8333.33,0.00033804,7]
[392056647,1761126638972,-8333.33,0.00033804,7]
[392056648,1761126638981,-8333.33,0.00033804,7]
[392056649,1761126638991,-8333.33,0.00033804,7]
[392056650,1761126639001,-151.0,0.00033804,30]
[392056651,1761126639011,-151.0,0.00033804,30]
[392056652,1761126639021,-257.540797,0.00033804,30]
[392056653,1761126639031,-215.953078,0.00033807,2]
[392056654,1761126639040,-186.735614,0.00033807,2]
[392056655,1761126639050,-156.09967,0.00033807,2]
[392056656,1761126639059,-153.914952,0.00033807,2]
[392056657,1761126639069,-8333.33,0.00033813,7]
[392056658,1761126639078,-8333.33,0.00033813,7]
[392056659,1761126639088,-1658.31135217,0.00033813,7]
[392056660,1761126639101,-3705.6295374,0.00033813,7]
[392056661,1761126639112,-2969.38911043,0.00033813,7]
[392056662,1761126639123,-714.72781311,0.00033813,7]
[392056663,1761126639134,-7618.60218689,0.00033813,7]
[392056664,1761126639143,-8333.33,0.00033813,7]
[392056665,1761126639153,-8333.33,0.00033813,7]
[392056666,1761126639162,-8333.33,0.00033813,7]
[392056667,1761126639172,-8333.33,0.00033813,7]
[392056668,1761126639181,-8333.33,0.00033813,7]
[392056669,1761126639191,-3069.15717771,0.00033813,7]
[392056789,1761126913731,151.47383939,0.00035322,30]
[392056793,1761127370366,418.3229,0.00013699,2]
[392056794,1761127370623,418.3229,0.00020187,2]
[392056849,1761127832118,-5000.0,0.00024501,2]
[392056850,1761127832128,-300.0,0.00024748,2]
[392056852,1761127832137,-1200.0,0.00024748,2]
[392056854,1761127832147,-150.0,0.00024749,2]
[392056856,1761127832156,-3217.0,0.00024749,2]
[392056858,1761127832165,-341.77701539,0.00025,2]
[392056860,1761127832174,-177.0,0.00025749,2]
[392056862,1761127832183,-418.3229,0.00026676,2]